bitfinex/quotes_ETHUSD_20241130
["timestamp","ask_amount","ask_price","bid_price","bid_amount"]
[1732940611112,0.55,3649.0,3648.6,2.74077]
[1732940611305,0.55,3648.8,3648.3,2.74094]
[1732940611505,0.55,3648.6,3648.3,2.74094]
[1732940611746,0.55,3648.4,3648.3,2.74094]
[1732940620628,0.55,3648.4,3648.3,4.30114]
[1732940621564,8.98,3649.4,3649.3,2.74025]
[1732940621741,8.98,3649.4,3648.4,2.74092]
[1732940621742,1.5647,3650.1,3649.0,1.5602]
[1732940621942,1.5647,3650.4,3650.1,2.73965]
[1732940622256,4.0,3650.2,3650.1,2.73965]
[1732940622762,1.05447,3650.3,3650.0,2.73971]
[1732940623456,0.55,3650.2,3650.0,2.73971]
[1732940624035,0.55,3650.2,3649.7,2.7399]
[1732940624331,0.55,3650.2,3649.0,1.5602]
[1732940624531,1.14427796,3650.2,3649.0,1.5602]
[1732940624730,1.14427796,3650.2,3649.1,0.01372698]
[1732940625034,0.55,3650.3,3649.0,1.5602]
[1732940626555,0.55,3650.3,3649.9,2.73973]
[1732940626758,0.38576983,3650.3,3649.9,2.73973]
[1732940626970,0.38576983,3650.3,3650.0,2.73972]
[1732940627646,0.38576983,3650.3,3649.9,2.7398]
[1732940627953,1.82312859,3650.3,3649.9,2.7398]
[1732940628350,1.82312859,3650.3,3649.7,2.73993]
[1732940628532,0.38576983,3650.3,3649.7,2.73993]
[1732940629368,0.38576983,3650.3,3649.2,2.74025]
[1732940629533,0.42001975,3650.3,3649.2,2.74025]
[1732940630608,3.15952975,3650.3,3649.0,1.5602]
[1732940631559,3.15952975,3650.3,3649.6,2.73996]
[1732940631771,0.55,3650.1,3649.6,2.73996]
[1732940631942,0.55,3649.9,3649.0,1.5602]
[1732940632265,0.55,3649.9,3649.8,2.73987]
[1732940633162,9.12284662,3651.1,3650.3,2.7395]
[1732940633373,1.5437,3650.8,3650.6,2.73922]
[1732940633582,6.77351297,3650.7,3650.0,2.73971]
[1732940633864,4.0,3650.7,3649.5,1.606]
[1732940634263,0.03424795,3650.7,3649.5,1.606]
[1732940634478,1.5398439,3650.6,3649.5,1.606]
[1732940634672,0.55,3650.5,3649.5,1.606]
[1732940636075,0.55,3650.3,3649.5,1.606]
[1732940636261,0.55,3650.1,3649.5,1.606]
[1732940636577,0.55,3650.3,3649.5,1.606]
[1732940636750,0.55,3650.1,3649.5,1.606]
[1732940638144,1.5437,3652.0,3650.0,2.10131105]
[1732940638488,10.5237,3652.6,3650.9,1.606]
[1732940638656,1.326142,3652.5,3650.9,1.606]
[1732940638978,1.326142,3652.5,3651.9,2.7383]
[1732940639388,4.09824197,3652.5,3651.3,2.73871]
[1732940639594,1.5437,3652.2,3651.3,2.73871]
[1732940639753,0.03423367,3652.1,3651.5,2.73852]
[1732940639953,0.43159837,3652.0,3651.5,2.73852]
[1732940640447,0.43159837,3652.0,3651.6,2.73852]
[1732940640890,0.55,3651.9,3651.6,2.73852]
[1732940641075,0.55,3651.9,3651.4,2.73863]
[1732940641273,0.55,3651.9,3651.5,2.73858]
[1732940641481,1.07634284,3651.9,3651.6,2.73851]
[1732940641790,1.07634284,3651.9,3651.4,2.73863]
[1732940642204,1.07634284,3651.9,3650.9,1.606]
[1732940644815,1.07634284,3651.9,3650.1,1.5287]
[1732940644816,1.6139,3651.6,3650.1,1.5287]
[1732940645108,0.58423763,3651.5,3650.1,1.5287]
[1732940645472,0.55,3651.5,3650.1,1.5287]
[1732940646209,0.55,3651.5,3651.1,2.73887]
[1732940646415,0.55,3651.5,3650.9,2.739]
[1732940646598,0.55,3651.5,3651.0,2.73893]
[1732940646599,1.66439,3651.5,3651.0,2.73893]
[1732940646789,1.66439,3651.5,3650.1,1.5287]
[1732940647132,0.55,3651.3,3650.1,4.26831]
[1732940647294,0.55,3651.3,3650.8,2.73911]
[1732940647489,0.44372385,3651.2,3650.8,2.73911]
[1732940647697,0.55,3651.1,3650.8,2.73911]
[1732940648236,0.55,3651.1,3650.9,2.73904]
[1732940648402,0.55,3651.4,3650.9,2.73904]
[1732940649929,0.55,3651.4,3650.4,1.58899823]
[1732940650113,1.11439,3651.5,3650.4,1.58899823]
[1732940650114,0.55,3651.5,3650.4,1.58899823]
[1732940650293,0.55,3651.3,3650.4,1.5753]
[1732940650488,10.5939,3651.6,3650.4,1.5753]
[1732940650690,8.98,3651.6,3650.8,2.10131105]
[1732940651022,1.5,3652.0,3650.9,1.5753]
[1732940651528,1.5,3652.3,3650.9,1.5753]
[1732940651694,2.6806142,3652.3,3650.9,1.5753]
[1732940653333,0.55,3652.2,3650.9,1.5753]
[1732940655731,0.03423137,3652.2,3650.9,1.5753]
[1732940655940,0.14370043,3652.5,3651.9,4.30922126]
[1732940656232,1.5,3652.8,3651.9,4.30922126]
[1732940656398,1.048,3652.7,3651.9,1.5753]
[1732940656598,1.53422726,3652.6,3650.9,2.73901]
[1732940656799,1.53422726,3652.6,3650.8,2.10131105]
[1732940657400,1.5,3652.6,3650.8,2.10131105]
[1732940657637,0.55,3652.5,3650.8,2.10131105]
[1732940657931,0.55,3652.9,3651.2,2.10131105]
[1732940658154,0.55,3652.7,3651.2,2.10131105]
[1732940659536,0.55,3652.7,3651.3,1.5753]
[1732940664853,0.55,3652.5,3651.3,1.5753]
[1732940665251,0.14284119,3652.4,3651.3,1.5753]
[1732940665432,0.55,3652.3,3651.3,1.5753]
[1732940665648,0.55,3652.1,3650.9,1.6321]
[1732940668021,0.0342313,3652.0,3650.9,1.6321]
[1732940668243,0.55,3651.7,3650.4,2.10131105]
[1732940668533,0.55,3651.7,3650.5,1.6244]
[1732940671649,1.5591,3652.1,3651.3,1.6244]
[1732940671978,1.5591,3652.5,3651.3,1.6244]
[1732940672187,2.6666916,3652.5,3651.3,1.6244]
[1732940672870,0.55,3652.4,3651.3,1.6244]
[1732940678445,1.70194275,3653.3,3651.6,2.10131105]
[1732940678759,1.70194275,3653.3,3651.7,1.6244]
[1732940678941,0.17019428,3653.2,3651.7,1.6244]
[1732940679340,1.5591,3653.1,3651.7,1.6244]
[1732940680284,0.55,3653.0,3651.7,1.6244]
[1732940680691,1.5933223,3652.9,3651.7,1.6244]
[1732940680853,0.55,3652.8,3651.7,1.6244]
[1732940681883,0.55,3652.6,3651.7,1.6244]
[1732940682078,1.5591,3652.9,3651.7,1.6244]
[1732940682079,0.55,3652.8,3651.7,1.6244]
[1732940682278,1.5591,3652.9,3651.7,1.6244]
[1732940682459,1.5591,3652.9,3652.0,2.10131105]
[1732940682784,1.5591,3653.2,3652.1,1.6244]
[1732940683551,0.55,3653.1,3652.1,1.6244]
[1732940684774,0.55,3652.9,3652.1,1.6244]
[1732940685850,0.55,3652.8,3652.1,1.6244]
[1732940686153,0.55,3652.6,3651.7,1.5843]
[1732940686856,0.55,3652.6,3652.1,1.5843]
[1732940687700,1.5391,3653.2,3652.1,1.5843]
[1732940687892,0.55,3653.1,3652.1,1.5843]
[1732940688269,0.20891,3653.0,3652.1,1.5843]
[1732940688799,0.55,3653.1,3652.1,1.5843]
[1732940690998,0.58421853,3653.1,3652.1,1.5843]
[1732940692256,0.55,3652.8,3651.6,1.5194]
[1732940692493,0.55,3652.6,3650.9,3.62071105]
[1732940692796,0.55,3652.4,3650.9,3.62071105]
[1732940692956,1.5539,3652.1,3650.9,3.62071105]
[1732940693160,0.55,3652.0,3650.9,3.62071105]
[1732940693767,0.55,3651.8,3650.9,1.5194]
[1732940694159,0.55,3651.8,3650.5,2.10131105]
[1732940694363,0.55,3651.8,3650.6,1.5194]
[1732940694364,0.55,3651.6,3650.6,1.5194]
[1732940694801,0.55,3651.8,3650.6,1.5194]
[1732940695457,0.03423356,3651.7,3650.6,1.5194]
[1732940695722,1.034214,3651.8,3650.6,1.5194]
[1732940695955,0.03423356,3651.7,3650.6,1.5194]
[1732940696372,0.55,3651.6,3650.6,1.5194]
[1732940696596,0.55,3651.8,3650.6,1.5194]
[1732940698185,0.56120017,3651.2,3650.6,1.5194]
[1732940698792,0.55,3651.2,3650.5,2.10131105]
[1732940699206,0.55,3651.0,3650.3,1.5194]
[1732940699515,0.55,3651.2,3650.1,2.10131105]
[1732940700482,0.58424016,3651.2,3650.1,2.10131105]
[1732940700682,1.5539,3651.0,3650.0,1.5194]
[1732940700881,0.55,3650.8,3649.7,3.62071105]
[1732940701212,0.55,3650.8,3650.1,2.10131105]
[1732940701499,0.55,3650.9,3650.1,2.10131105]
[1732940701707,0.55,3650.9,3650.2,0.01370613]
[1732940701882,1.5539,3652.0,3650.5,2.10131105]
[1732940702105,1.5539,3652.0,3650.2,0.01370613]
[1732940702106,2.62117729,3652.0,3650.9,2.10131105]
[1732940703222,0.55,3651.9,3651.0,1.605]
[1732940703931,0.55,3651.9,3650.7,1.605]
[1732940704800,0.03423186,3651.8,3650.7,1.605]
[1732940705031,0.55,3651.7,3650.7,1.605]
[1732940705190,2.149,3651.5,3650.7,1.605]
[1732940705391,0.55,3651.3,3650.3,1.59]
[1732940705764,2.149,3651.5,3650.3,1.59]
[1732940705933,0.21381319,3651.7,3650.1,2.10131105]
[1732940705934,0.55,3651.3,3650.1,2.10131105]
[1732940706100,0.55,3650.9,3650.0,1.59]
[1732940710220,0.55,3650.7,3649.7,3.75291105]
[1732940710746,0.55,3650.9,3649.7,3.75291105]
[1732940710934,0.55,3650.7,3649.7,3.75291105]
[1732940711233,0.55,3650.9,3649.7,3.75291105]
[1732940711734,0.55,3650.9,3649.8,0.01370828]
[1732940712132,0.55,3650.9,3649.8,0.01370829]
[1732940712839,0.55,3650.9,3649.7,3.75291105]
[1732940714744,0.55,3650.7,3649.7,3.75291105]
[1732940714908,0.55,3650.7,3649.7,1.6516]
[1732940715111,0.58424151,3650.9,3649.7,3.75291105]
[1732940715455,0.55,3650.7,3649.7,3.75291105]
[1732940715660,1.599,3651.0,3649.7,3.75291105]
[1732940715661,0.55,3650.9,3649.7,3.75291105]
[1732940716232,0.55,3650.7,3649.7,3.75291105]
[1732940719670,0.55,3650.5,3649.3,3.75291105]
[1732940720019,0.55,3650.5,3649.4,0.01371608]
[1732940721259,0.55,3650.5,3649.4,0.01371609]
[1732940721410,0.55,3650.5,3649.3,3.75291105]
[1732940721411,0.55,3650.5,3649.3,3.76662714]
[1732940721616,0.55,3650.5,3649.3,3.75291105]
[1732940722157,0.55,3650.3,3649.3,1.6516]
[1732940722342,0.55,3650.3,3649.4,2.10131105]
[1732940722816,0.55,3650.1,3649.4,2.10131105]
[1732940723013,0.55,3650.1,3649.5,0.01371957]
[1732940723456,0.55,3650.1,3649.2,0.0137185]
[1732940723640,0.55,3650.1,3649.3,2.10131105]
[1732940725148,0.55,3650.1,3649.4,0.01371844]
[1732940725561,1.5411,3650.2,3649.4,0.01371844]
[1732940725764,0.55,3650.6,3649.4,0.01371844]
[1732940725922,1.5196,3650.7,3649.8,1.6408]
[1732940726127,1.5196,3650.7,3649.8,1.65450642]
[1732940726438,1.5196,3650.7,3649.8,1.6408]
[1732940726647,2.57298413,3650.7,3649.7,2.10131105]
[1732940727248,0.55,3650.6,3649.7,2.10131105]
[1732940727962,0.55,3650.6,3649.8,0.01371204]
[1732940728926,0.55,3650.6,3649.8,0.01371197]
[1732940729248,0.55,3650.6,3649.7,2.10131105]
[1732940729449,0.55,3650.6,3649.8,0.01371195]
[1732940729863,0.55,3650.6,3649.7,2.05131105]
[1732940731860,0.55,3650.6,3649.4,1.6408]
[1732940732063,0.55,3650.4,3649.4,4.6408]
[1732940732830,0.55,3650.2,3649.3,2.10131105]
[1732940734268,0.55,3650.2,3649.4,0.01371831]
[1732940734442,0.55,3650.2,3649.3,2.10131105]
[1732940740560,0.03424733,3650.1,3649.3,2.10131105]
[1732940740755,0.55,3650.2,3649.3,2.10131105]
[1732940740986,1.5899,3649.9,3649.0,3.0]
[1732940741185,0.97317457,3649.9,3649.0,3.0]
[1732940741659,1.00742369,3649.9,3649.0,3.0]
[1732940741903,0.97317457,3649.9,3649.0,3.0]
[1732940742569,0.55,3649.8,3648.9,3.71071105]
[1732940745403,0.55,3649.4,3648.1,3.90641094]
[1732940745604,1.62085499,3649.3,3648.1,3.90641094]
[1732940745766,1.5866,3649.3,3648.1,3.90641094]
[1732940745966,1.5866,3649.3,3648.1,3.62011105]
[1732940746391,2.17085531,3649.2,3648.1,2.10131105]
[1732940746602,1.5866,3649.1,3648.1,2.10131105]
[1732940746825,0.55,3649.0,3648.1,2.10131105]
[1732940747131,2.74014,3649.5,3648.1,2.10131105]
[1732940747132,0.55,3648.7,3648.1,2.10131105]
[1732940747416,0.55,3648.7,3647.7,2.10131105]
[1732940747573,1.5866,3648.6,3647.7,2.10131105]
[1732940748707,2.116,3648.4,3648.3,2.741]
[1732940748916,2.3276,3648.4,3648.3,2.741]
[1732940749110,2.116,3648.4,3648.3,2.741]
[1732940752726,1.566,3648.3,3646.9,2.10131105]
[1732940752906,0.55,3648.0,3647.6,2.74152]
[1732940753082,1.566,3647.7,3647.6,2.74152]
[1732940755692,2.116,3647.7,3647.6,2.74152]
[1732940756621,0.55,3647.6,3647.5,2.74159]
[1732940756788,0.58427042,3647.6,3647.5,2.74159]
[1732940757185,1.566,3647.5,3647.4,2.74167]
[1732940757387,2.116,3647.5,3647.4,2.74167]
[1732940758430,1.71427546,3650.4,3647.4,2.74167]
[1732940758431,1.566,3648.7,3648.6,2.74077]
[1732940761033,0.55,3648.6,3648.5,2.74085]
[1732940761183,2.116,3648.6,3648.5,2.74085]
[1732940764425,2.116,3648.6,3647.4,4.84298105]
[1732940764426,2.116,3648.6,3648.1,2.74113]
[1732940764605,0.55,3648.4,3648.1,2.74113]
[1732940764924,2.116,3648.6,3648.2,2.74105]
[1732940765124,0.55,3648.2,3646.8,1.5526]
[1732940765281,0.55,3648.0,3646.8,4.29471]
[1732940765487,0.55,3648.0,3647.7,2.74145]
[1732940767188,0.55,3648.2,3647.3,2.74175]
[1732940767387,0.55,3648.2,3647.4,2.74166]
[1732940767388,1.5527,3647.9,3647.4,2.74166]
[1732940767694,0.55,3647.8,3647.4,2.74166]
[1732940768524,0.55,3647.6,3647.0,2.7419]
[1732940768700,0.55,3647.6,3646.8,2.7421]
[1732940768701,0.55,3647.4,3646.8,2.7421]
[1732940768903,0.55,3647.2,3647.0,2.74197]
[1732940769118,0.55,3647.2,3647.0,2.74192]
[1732940769488,0.55,3647.2,3647.1,2.7419]
[1732940769699,0.55,3647.2,3647.0,2.74192]
[1732940771947,0.55,3647.2,3647.1,2.7419]
[1732940773526,0.55,3647.2,3647.0,2.74196]
[1732940774342,0.55,3647.2,3647.1,2.7419]
[1732940777186,0.55,3647.2,3647.0,2.74197]
[1732940777482,0.77844178,3647.2,3647.0,2.74197]
[1732940778077,0.77844178,3647.2,3646.8,2.74211]
[1732940778377,0.77844178,3647.2,3646.9,2.74204]
[1732940779575,0.77844178,3647.2,3646.3,1.6522]
[1732940780078,0.77844178,3647.2,3646.8,2.74207]
[1732940780261,0.77844178,3647.2,3646.9,2.74204]
[1732940780576,0.55,3647.2,3647.0,2.74194]
[1732940785254,8.98,3647.6,3647.5,2.7416]
[1732940785451,1.5692,3647.7,3647.6,2.74152]
[1732940785956,1.5692,3648.2,3647.7,2.74138]
[1732940786271,1.5692,3648.2,3648.0,2.7412]
[1732940786471,1.5692,3648.2,3648.1,2.74115]
[1732940786672,0.95217938,3648.2,3648.1,2.74115]
[1732940787761,1.50217938,3648.2,3648.1,2.74115]
[1732940789213,9.12276447,3649.2,3647.9,1.6043]
[1732940789495,9.12276447,3649.2,3648.1,2.74114]
[1732940789496,2.74062,3648.8,3648.1,2.74114]
[1732940789696,1.5445,3648.7,3648.1,2.74114]
[1732940790059,1.5445,3648.7,3648.2,2.74106]
[1732940790257,2.247059,3648.7,3648.2,2.74106]
[1732940790485,0.55,3648.6,3648.2,2.74106]
[1732940790811,0.55,3648.6,3648.3,2.74098]
[1732940790982,0.55,3648.6,3648.4,2.74091]
[1732940792887,0.55,3648.6,3648.0,2.7412]
[1732940793088,0.55,3648.4,3648.0,2.7412]
[1732940793310,1.5445,3648.2,3648.0,2.7412]
[1732940793508,0.55,3648.1,3648.0,2.7412]
[1732940795306,0.55,3648.0,3647.9,2.74124]
[1732940795863,0.55,3648.1,3647.9,2.74124]
[1732940796671,0.55,3648.1,3648.0,2.74122]
[1732940797274,0.55,3648.1,3647.7,2.74144]
[1732940797583,0.55,3648.1,3647.9,2.74129]
[1732940798411,0.55,3648.1,3647.5,2.74158]
[1732940798719,0.55,3647.9,3647.5,2.74158]
[1732940798903,0.55,3647.7,3647.6,2.74151]
[1732940799415,0.58426987,3648.1,3647.7,2.74144]
[1732940799906,1.96923986,3648.1,3647.7,2.74144]
[1732940800504,1.96923986,3648.1,3647.5,2.74158]
[1732940800690,1.96923986,3648.1,3647.6,2.74151]
[1732940801988,0.55,3647.9,3647.2,2.74181]
[1732940802189,0.55,3647.9,3646.7,1.6043]
[1732940802190,3.29133,3647.9,3647.3,2.74173]
[1732940802427,0.55,3647.7,3646.7,1.6043]
[1732940802633,0.55,3647.7,3647.4,2.7416]
[1732940802831,0.55,3647.9,3646.8,2.74213]
[1732940802994,0.55,3647.9,3647.8,2.74137]
[1732940803725,0.58426904,3647.9,3647.6,2.74151]
[1732940803929,0.79714594,3647.9,3647.4,2.74163]
[1732940804435,0.55,3647.7,3647.2,2.7418]
[1732940804795,3.29145,3647.7,3647.0,2.74193]
[1732940805025,1.5965,3647.4,3647.0,2.74193]
[1732940805723,0.55,3647.3,3647.0,2.74193]
[1732940806131,0.55,3647.3,3646.4,1.5526]
[1732940806311,0.58427813,3647.3,3646.7,2.74215]
[1732940806505,0.55,3647.3,3646.8,2.74207]
[1732940806840,0.55,3647.3,3646.9,2.74205]
[1732940807756,1.038811,3647.3,3646.7,2.74217]
[1732940808554,1.038811,3647.3,3646.8,2.74212]
[1732940809588,1.038811,3647.3,3646.9,2.74205]
[1732940810468,3.780571,3647.3,3646.6,2.74228]
[1732940810617,0.55,3647.3,3646.7,2.74214]
[1732940811259,0.55,3647.3,3646.8,2.74208]
[1732940812348,0.69439034,3647.3,3646.8,2.74208]
[1732940814553,0.69439034,3647.3,3646.4,1.5526]
[1732940814781,0.69439034,3647.3,3646.8,2.74208]
[1732940814987,0.55,3647.1,3646.8,2.74208]
[1732940815136,0.55,3647.1,3647.0,2.74197]
[1732940815340,0.55,3647.1,3646.4,4.29501]
[1732940815341,0.55,3647.3,3647.1,2.7419]
[1732940817152,0.55,3647.3,3647.2,2.74182]
[1732940818517,0.55,3647.3,3646.9,2.74204]
[1732940818775,0.55,3647.3,3647.0,2.74194]
[1732940819153,0.55,3647.3,3646.4,1.5526]
[1732940819350,0.55,3647.3,3646.9,2.74205]
[1732940819656,1.05628639,3647.3,3646.9,2.74205]
[1732940819866,1.05628639,3647.3,3646.9,2.74198]
[1732940820053,0.55,3647.3,3646.9,2.74198]
[1732940820269,0.55,3647.3,3647.0,2.74196]
[1732940821362,0.55,3647.3,3646.8,2.74211]
[1732940822368,0.55,3647.3,3647.2,2.74182]
[1732940823498,8.98,3647.7,3647.2,2.74182]
[1732940823499,0.55,3647.6,3647.3,2.74169]
[1732940823895,0.55,3647.6,3647.4,2.74167]
[1732940824374,0.55,3647.6,3647.2,2.74182]
[1732940824575,0.55,3647.4,3647.2,2.74182]
[1732940824802,0.5842738,3647.3,3647.2,2.74182]
[1732940825907,0.55,3647.6,3647.3,2.74171]
[1732940826298,0.55,3647.6,3647.0,2.74196]
[1732940826299,0.55,3647.4,3646.8,2.74206]
[1732940826495,0.03427652,3647.3,3646.9,2.74199]
[1732940826705,0.79443585,3647.6,3646.7,1.5768]
[1732940826869,0.79443585,3647.6,3647.1,2.74184]
[1732940827411,0.55,3647.6,3647.3,2.74174]
[1732940827607,0.55,3647.6,3647.1,2.74184]
[1732940827902,0.55,3647.6,3647.2,2.74175]
[1732940829381,0.55,3647.6,3647.3,2.74175]
[1732940830915,0.55,3647.6,3647.4,2.74165]
[1732940832378,1.68900852,3647.6,3647.2,2.74177]
[1732940832600,1.6816405,3647.6,3647.2,2.74177]
[1732940833281,1.6816405,3647.6,3647.1,2.74188]
[1732940833599,1.6816405,3647.6,3647.2,2.74182]
[1732940835409,1.66690445,3647.6,3647.2,2.74182]
[1732940835813,1.66690445,3647.6,3647.0,2.74196]
[1732940836043,0.52789593,3647.6,3647.2,2.74176]
[1732940836676,0.52789593,3647.6,3646.7,1.5768]
[1732940836877,0.52789593,3647.6,3646.7,4.319]
[1732940837110,0.52789593,3647.6,3647.1,2.74186]
[1732940837325,0.52789593,3647.6,3647.3,2.74171]
[1732940838028,0.52789593,3647.6,3647.1,2.74186]
[1732940838180,0.52789593,3647.6,3647.4,2.74166]
[1732940839005,0.52789593,3647.6,3647.5,2.7416]
[1732940842643,1.5345,3648.4,3647.4,1.5164]
[1732940842963,3.26369222,3648.4,3647.4,1.5164]
[1732940843314,3.22942179,3648.4,3647.8,2.74132]
[1732940843863,0.55,3648.3,3647.8,2.74132]
[1732940845034,0.55,3648.3,3647.9,2.74124]
[1732940845350,0.55,3648.3,3648.0,2.74122]
[1732940845960,0.55,3648.3,3648.2,2.74107]
[1732940846133,0.55,3648.3,3648.1,2.74109]
[1732940846335,0.55,3648.3,3647.9,2.74129]
[1732940846565,0.55,3648.3,3648.2,2.74107]
[1732940846921,0.55,3648.3,3648.0,2.74115]
[1732940847117,0.55,3648.3,3648.1,2.7411]
[1732940847562,0.55,3648.3,3647.7,2.74144]
[1732940847867,0.55,3648.1,3647.7,2.74144]
[1732940848027,0.03426828,3648.0,3647.7,2.74144]
[1732940848361,0.55,3648.1,3647.7,2.74144]
[1732940848515,0.03426828,3648.0,3647.7,2.74144]
[1732940848718,0.55,3647.9,3647.7,2.74144]
[1732940848919,0.0342686,3647.8,3647.7,2.74144]
[1732940849332,0.55,3647.8,3647.7,2.74144]
[1732940852775,0.55,3647.7,3647.6,2.74152]
[1732940858484,0.55,3647.7,3647.4,4.25807]
[1732940858485,0.55,3648.1,3648.0,2.74121]
[1732940860078,0.55,3648.1,3647.9,2.74129]
[1732940860277,0.55,3648.3,3647.9,2.74129]
[1732940860482,0.55,3648.1,3647.7,2.7414]
[1732940860776,0.55,3648.1,3647.6,2.74152]
[1732940860981,0.55,3648.1,3647.7,2.74142]
[1732940861977,0.55,3648.1,3647.6,2.74152]
[1732940862181,0.55,3647.9,3647.6,2.74152]
[1732940863048,0.55,3647.9,3647.0,2.74192]
[1732940863049,0.55,3647.9,3647.2,2.74181]
[1732940863237,0.55,3647.6,3647.2,2.74181]
[1732940863434,0.58427377,3647.6,3647.0,2.74195]
[1732940863647,0.58427377,3647.6,3647.0,2.74197]
[1732940863846,0.55,3647.4,3647.0,2.74197]
[1732940864085,0.55,3647.5,3647.0,2.74197]
[1732940864287,0.55,3647.5,3646.8,2.74211]
[1732940864494,0.55,3647.1,3646.7,2.7422]
[1732940867095,8.98,3647.8,3647.3,2.74173]
[1732940867410,2.74146,3647.7,3647.1,2.7419]
[1732940867599,0.0342731,3647.7,3646.9,1.5948]
[1732940867757,4.24828,3647.6,3646.9,2.74205]
[1732940867953,4.43388179,3647.5,3646.9,2.74205]
[1732940868356,3.29168,3647.4,3646.7,2.74217]
[1732940868607,0.55,3647.4,3646.8,2.74206]
[1732940869292,3.29171,3647.4,3646.8,2.74206]
[1732940869682,0.55,3647.4,3647.1,2.74189]
[1732940871366,0.55,3647.4,3647.2,2.74179]
[1732940871524,0.55,3647.5,3647.3,2.74173]
[1732940871713,0.55,3647.5,3646.6,1.5948]
[1732940872044,0.55,3647.5,3647.2,2.7418]
[1732940872543,0.55,3647.5,3646.9,2.742]
[1732940872544,0.72115002,3647.4,3647.0,2.74195]
[1732940872706,0.55,3647.3,3647.0,2.74195]
[1732940873234,0.55,3647.5,3647.1,2.74189]
[1732940873435,0.55,3647.5,3646.9,2.742]
[1732940873645,3.2916,3647.5,3646.9,2.742]
[1732940873810,0.55,3647.3,3646.9,2.742]
[1732940874012,0.55,3647.3,3646.8,2.74212]
[1732940874242,0.55,3647.3,3646.9,2.74203]
[1732940874636,1.5693,3647.2,3646.6,2.74227]
[1732940874827,0.55,3647.1,3646.7,2.74216]
[1732940875343,0.55,3647.1,3646.6,2.74226]
[1732940875661,0.55,3647.1,3646.3,1.5527]
[1732940875662,0.55,3647.1,3646.7,2.74219]
[1732940875844,0.55,3647.1,3646.5,2.74235]
[1732940876170,0.55,3647.1,3646.8,2.74212]
[1732940879250,0.55,3647.1,3646.6,2.74223]
[1732940880086,0.55,3647.1,3646.3,4.29518]
[1732940880373,0.55,3647.1,3645.4,1.5045007]
[1732940880374,0.55,3646.5,3646.2,2.74256]
[1732940880574,0.55,3646.5,3646.0,2.74271]
[1732940881074,0.55,3646.5,3646.2,2.74253]
[1732940881277,3.87380879,3646.5,3645.8,1.5527]
[1732940881476,3.87380879,3646.5,3645.6,2.74302]
[1732940881477,2.74244,3646.4,3645.6,2.74302]
[1732940881647,0.55,3646.3,3645.7,2.74295]
[1732940881970,0.55,3646.4,3645.9,2.7428]
[1732940883773,0.55,3646.4,3646.0,2.74272]
[1732940884187,0.55,3646.4,3645.8,2.74286]
[1732940885075,0.55,3646.4,3645.9,2.7428]
[1732940885950,0.55,3646.4,3645.7,2.74295]
[1732940886139,0.55,3646.4,3645.9,2.74275]
[1732940887080,0.55,3646.4,3645.7,2.74295]
[1732940887239,1.46384866,3646.4,3645.7,2.74295]
[1732940887442,1.46384866,3646.4,3645.4,2.755423]
[1732940887443,2.74273,3646.0,3645.4,2.755423]
[1732940887749,0.58428855,3645.9,3645.4,2.755423]
[1732940887955,0.55,3645.9,3645.4,2.755423]
[1732940888156,2.7429,3645.8,3645.4,0.012263]
[1732940888354,0.55,3645.7,3645.4,0.012263]
[1732940888678,0.55,3645.5,3645.4,0.012263]
[1732940889042,3.2931,3645.5,3645.4,0.012263]
[1732940889240,0.55,3645.5,3645.4,0.012263]
[1732940890573,3.2931,3645.5,3645.4,0.012263]
[1732940890910,4.957709,3645.5,3645.4,0.012263]
[1732940891207,2.214609,3645.5,3645.4,0.012263]
[1732940891398,0.55,3645.5,3645.4,0.012263]
[1732940893265,12.27312,3645.5,3645.0,100.0]
[1732940893492,11.1601,3645.1,3645.0,95.68653268]
[1732940894106,12.27611,3645.1,3645.0,93.74979825]
[1732940894308,9.03951,3645.1,3645.0,89.01415996]
[1732940894476,9.13951,3645.1,3645.0,83.65677554]
[1732940894680,18.11951,3645.1,3645.0,74.0507858]
[1732940895008,18.11951,3645.1,3645.0,72.8169858]
[1732940895175,18.11951,3645.1,3645.0,49.67514395]
[1732940895176,18.21951,3645.1,3645.0,49.67514395]
[1732940895384,22.3120683,3645.1,3645.0,21.26519781]
[1732940895592,1.6301,3644.7,3643.0,2.74492]
[1732940895773,0.1,3644.8,3643.0,2.74492]
[1732940895774,1.6301,3643.7,3643.0,2.74492]
[1732940896491,1.6301,3643.7,3643.1,2.7449]
[1732940897292,0.55,3643.6,3643.1,2.7449]
[1732940897709,0.55,3643.6,3642.9,2.745]
[1732940897922,0.55,3643.6,3643.0,2.74498]
[1732940898121,0.55,3643.6,3642.9,2.745]
[1732940898628,0.55,3643.6,3641.9,2.11673125]
[1732940898629,0.03431211,3643.5,3642.5,1.5312]
[1732940898919,3.29454,3643.6,3642.8,2.74512]
[1732940899876,0.55,3643.6,3642.8,2.74508]
[1732940900080,0.55,3643.6,3643.3,2.74474]
[1732940900319,11.09673125,3644.1,3643.0,2.74492]
[1732940900320,0.55,3643.8,3643.2,2.74483]
[1732940900718,0.55,3643.8,3643.3,2.74475]